bitfinex/quotes_ETHUSD_20241105
["timestamp","ask_amount","ask_price","bid_price","bid_amount"]
[1730766905382,0.767,2410.1,2409.2,3.48257251]
[1730766905679,0.767,2410.1,2409.2,0.48257251]
[1730766905845,0.767,2410.1,2408.9,0.08300203]
[1730766906042,0.0670357,2410.0,2408.9,0.33636815]
[1730766906266,0.8,2409.9,2409.0,0.25336612]
[1730766906468,0.8,2409.9,2409.1,0.083002]
[1730766906685,0.0670357,2409.8,2409.1,0.083002]
[1730766906993,0.0670357,2409.8,2409.1,4.12012708]
[1730766907147,0.8,2409.9,2409.2,4.49537883]
[1730766907485,0.06637776,2409.8,2409.3,0.08299785]
[1730766907983,0.8,2409.9,2409.3,0.08299785]
[1730766908184,0.7605,2410.5,2409.4,5.31765336]
[1730766908345,0.7605,2410.5,2409.6,0.83]
[1730766908544,0.06645902,2410.4,2409.7,0.08298292]
[1730766908947,0.7605,2410.5,2409.7,0.08298292]
[1730766909348,0.06654838,2410.4,2409.7,0.08298292]
[1730766909689,0.7605,2410.5,2409.8,0.08298298]
[1730766909872,0.7605,2410.5,2409.8,0.55]
[1730766910050,0.06666211,2410.4,2409.8,0.55]
[1730766910383,0.7605,2410.5,2409.8,0.55]
[1730766910690,0.06666211,2410.4,2409.8,0.55]
[1730766910983,0.7605,2410.5,2409.8,0.55]
[1730766911353,0.06666211,2410.4,2409.8,0.55]
[1730766911873,0.7605,2410.5,2409.8,0.55]
[1730766912251,0.06666211,2410.4,2409.8,0.55]
[1730766912648,0.7605,2410.5,2409.9,3.08297435]
[1730766912844,0.7605,2410.5,2410.0,0.38861787]
[1730766913090,0.7605,2410.5,2410.1,0.08297431]
[1730766913091,0.06682456,2410.4,2410.1,0.08297431]
[1730766913396,0.06682456,2410.4,2409.9,0.08297435]
[1730766913552,0.7605,2410.5,2409.8,0.80313211]
[1730766913956,0.0668408,2410.4,2409.9,0.08297435]
[1730766914155,0.7605,2410.5,2409.9,0.08297435]
[1730766914555,0.0668408,2410.4,2409.8,0.80313211]
[1730766914795,0.7605,2410.5,2409.8,0.80313211]
[1730766915010,0.06684892,2410.4,2409.8,0.55]
[1730766915200,0.7605,2410.5,2409.8,0.55]
[1730766915364,0.06684892,2410.4,2409.8,0.55]
[1730766915563,0.7781,2410.3,2409.7,0.70097018]
[1730766915869,0.06684892,2410.2,2409.6,0.25323752]
[1730766916099,0.06684892,2410.2,2409.5,0.25323752]
[1730766916396,0.7781,2410.3,2409.7,0.08298298]
[1730766916557,0.06695453,2410.2,2409.7,0.3362205]
[1730766916757,0.7781,2410.3,2409.7,0.3362205]
[1730766916758,0.7781,2410.3,2409.7,0.08298298]
[1730766916972,0.06695453,2410.2,2409.7,0.08298298]
[1730766917194,0.7781,2410.3,2409.7,0.41660503]
[1730766917498,0.06695453,2410.2,2409.7,0.08298298]
[1730766917873,0.7781,2410.3,2409.7,0.08298298]
[1730766918092,0.7781,2410.3,2409.5,0.33635931]
[1730766918292,0.06687331,2410.2,2409.6,0.25337628]
[1730766918604,0.7781,2410.3,2409.7,0.08298305]
[1730766918917,0.06687331,2410.2,2409.7,0.41661898]
[1730766919198,0.7781,2410.3,2409.7,0.08298305]
[1730766919396,0.06687331,2410.2,2409.6,3.33648326]
[1730766919601,0.7781,2410.3,2409.7,0.25350056]
[1730766919777,0.06687331,2410.2,2409.8,0.08298308]
[1730766919978,0.7781,2410.3,2409.6,0.33654259]
[1730766920305,0.06687331,2410.2,2409.6,3.0829831]
[1730766920461,0.06687331,2410.2,2409.7,0.58721375]
[1730766920663,0.7781,2410.3,2409.8,0.08297849]
[1730766920862,0.7781,2410.3,2409.6,0.55]
[1730766921085,0.7781,2410.3,2409.8,0.55]
[1730766921297,0.7781,2410.3,2409.5,0.25355949]
[1730766921522,0.7781,2410.3,2409.6,0.0829913]
[1730766921699,0.06693828,2410.2,2409.4,0.33654469]
[1730766921900,0.06693828,2410.2,2409.5,0.25355949]
[1730766922087,0.06693828,2410.2,2409.6,0.25355949]
[1730766922294,0.7663,2410.1,2409.3,0.25355949]
[1730766922487,0.7663,2410.1,2409.4,0.25355949]
[1730766922488,0.83323828,2410.1,2409.4,0.25355949]
[1730766922689,0.7663,2410.1,2409.5,0.25355949]
[1730766922888,0.7663,2410.1,2409.4,3.25355949]
[1730766923113,0.7663,2410.1,2409.0,4.66182897]
[1730766923114,0.8283,2409.9,2409.0,1.22821072]
[1730766923327,0.8283,2409.9,2409.1,0.08299382]
[1730766923489,0.8283,2409.9,2409.2,0.25371034]
[1730766923690,0.8283,2409.9,2409.3,0.33670417]
[1730766923691,0.06693828,2409.8,2409.3,0.33670417]
[1730766923893,0.8283,2409.9,2409.4,3.25371034]
[1730766924087,0.8283,2409.9,2409.2,0.55]
[1730766924335,0.8283,2409.9,2409.3,0.25367209]
[1730766924494,0.8283,2409.9,2409.4,0.25367209]
[1730766926194,0.8283,2409.9,2409.5,0.25367209]
[1730766926431,0.8283,2409.9,2409.3,0.46001736]
[1730766926605,0.8283,2409.9,2409.4,0.25393912]
[1730766926794,0.8283,2409.9,2409.5,0.25395742]
[1730766926993,0.8283,2409.9,2409.4,0.25395742]
[1730766927218,0.8283,2409.9,2409.5,0.25395742]
[1730766927420,0.8283,2409.9,2409.6,0.25395742]
[1730766927731,0.06664585,2409.8,2409.3,0.40634743]
[1730766928035,0.8283,2409.9,2409.4,0.660506]
[1730766928328,0.06664585,2409.7,2409.5,0.660506]
[1730766928531,0.8283,2409.9,2409.6,0.25415857]
[1730766928737,0.8283,2409.9,2409.7,0.25415857]
[1730766928948,0.8283,2409.9,2409.4,0.40634743]
[1730766929116,0.8283,2409.9,2409.5,0.6607189]
[1730766929309,0.8283,2409.9,2409.6,0.6607189]
[1730766929509,0.8283,2409.9,2409.7,0.25437147]
[1730766929741,0.8283,2409.9,2409.8,0.25437147]
[1730766930335,0.8283,2409.9,2409.8,0.25464572]
[1730766931644,0.8283,2409.9,2409.8,0.66232184]
[1730766933759,0.7696,2410.2,2409.8,1.9968542]
[1730766933925,0.7696,2410.5,2409.9,0.84095887]
[1730766934120,0.7696,2410.5,2410.0,0.66243102]
[1730766934356,0.14364149,2410.4,2410.1,0.74540259]
[1730766934537,0.14364149,2410.4,2410.2,0.25477516]
[1730766934750,0.7696,2410.5,2410.3,0.25477516]
[1730766934910,0.7696,2410.5,2409.8,0.50957049]
[1730766935217,0.14364149,2410.4,2409.9,1.25502715]
[1730766935548,0.14364149,2410.4,2410.0,0.66247717]
[1730766935748,0.14364149,2410.4,2410.1,0.66247717]
[1730766935947,0.14364149,2410.4,2410.2,0.25479291]
[1730766936146,0.14364149,2410.4,2410.0,0.40771308]
[1730766936351,0.14364149,2410.4,2410.1,0.25481274]
[1730766936529,0.14364149,2410.4,2410.2,0.25481274]
[1730766936726,0.14364149,2410.4,2409.7,0.91754193]
[1730766936923,0.14364149,2410.4,2409.8,1.1723943]
[1730766937129,0.14364149,2410.4,2409.9,0.66264011]
[1730766937339,0.14364149,2410.4,2409.5,0.8248]
[1730766937616,0.14364149,2410.4,2409.6,3.38248]
[1730766937817,0.14364149,2410.4,2409.7,1.17250451]
[1730766938041,0.14364149,2410.4,2409.8,1.17250451]
[1730766938250,0.14364149,2410.4,2409.9,1.17250451]
[1730766938551,0.14364149,2410.4,2410.0,0.66270467]
[1730766938725,0.14364149,2410.4,2410.1,0.25488041]
[1730766938929,0.14364149,2410.4,2410.2,0.25488041]
[1730766939131,0.14364149,2410.4,2409.8,0.50979984]
[1730766939359,0.14364149,2410.4,2409.9,1.25526472]
[1730766939526,0.14364149,2410.4,2410.0,1.7222852]
[1730766939720,0.14364149,2410.4,2410.1,0.91155388]
[1730766940049,0.7696,2410.5,2410.2,0.66248536]
[1730766940367,0.14384456,2410.4,2410.3,0.25479606]
[1730766940814,0.14384456,2410.4,2410.3,0.66204801]
[1730766941018,0.61759611,2410.6,2410.3,0.66204801]
[1730766941213,0.61759611,2410.6,2410.4,0.66203596]
[1730766941443,0.61759611,2410.6,2410.5,0.25479606]
[1730766942955,1.42809611,2410.6,2410.1,0.24906852]
[1730766943252,1.42809611,2410.6,2410.2,0.25444142]
[1730766943253,0.7512,2410.5,2410.2,0.25444142]
[1730766943453,0.7512,2410.5,2410.3,0.25444142]
[1730766943662,0.7512,2410.5,2410.0,0.40709851]
[1730766943818,0.7512,2410.5,2410.1,0.66151091]
[1730766944019,0.7512,2410.5,2410.2,0.2544124]
[1730766944218,0.7512,2410.5,2410.3,0.2544124]
[1730766944556,0.7512,2410.5,2409.6,0.38248]
[1730766944855,0.7512,2410.5,2409.7,1.17049955]
[1730766945013,0.7616,2410.3,2409.8,0.66157648]
[1730766945214,0.7616,2410.3,2409.9,0.25445361]
[1730766945414,0.7616,2410.3,2410.0,0.25445361]
[1730766945642,0.7616,2410.3,2409.7,0.91630502]
[1730766945851,0.8281,2410.2,2409.8,0.25451867]
[1730766946062,4.03525871,2410.3,2409.4,0.91656027]
[1730766946063,0.8281,2410.0,2409.4,0.91656027]
[1730766946270,0.8281,2410.0,2409.5,0.6620156]
[1730766946463,0.8281,2409.9,2409.6,0.25462873]
[1730766946676,0.8281,2409.9,2409.3,0.40736374]
[1730766946838,0.8281,2409.9,2409.4,0.25461167]
[1730766947164,0.78,2409.7,2409.5,0.25461167]
[1730766947360,0.78,2409.7,2409.2,0.407411]
[1730766947563,0.78,2409.7,2409.3,0.66196649]
[1730766947863,0.78,2409.7,2409.4,0.25455549]
[1730766948068,0.14370646,2409.6,2409.5,0.25455549]
[1730766948434,0.14370646,2409.6,2409.3,0.40734461]
[1730766948763,0.14370646,2409.6,2409.4,0.25452549]
[1730766949063,0.14370646,2409.6,2409.1,0.40727449]
[1730766949224,0.14370646,2409.6,2409.2,0.6618104]
[1730766949432,0.78,2409.7,2409.3,0.25453591]
[1730766949763,0.78,2409.7,2409.4,0.25453591]
[1730766950054,0.78,2409.7,2409.1,0.40718715]
[1730766950366,0.78,2409.7,2409.2,0.66168153]
[1730766950519,0.78,2409.7,2409.3,0.25449438]
[1730766950721,0.78,2409.7,2409.4,0.25449438]
[1730766950952,0.78,2409.7,2409.2,0.40717689]
[1730766950953,0.14370646,2409.6,2409.2,0.40717689]
[1730766951129,0.78,2409.7,2409.3,0.25447336]
[1730766951344,0.78,2409.7,2409.4,0.25447336]
[1730766951553,0.14321896,2409.6,2409.2,0.40716378]
[1730766951726,0.78,2409.7,2409.3,0.74454673]
[1730766951933,0.14282894,2409.5,2409.4,0.25438316]
[1730766952166,0.78,2409.7,2409.4,0.25438316]
[1730766952336,0.78,2409.7,2409.5,0.25435552]
[1730766952543,0.14282894,2409.6,2409.3,0.40698465]
[1730766952853,0.78,2409.7,2409.3,0.40698465]
[1730766952854,0.78,2409.7,2409.4,0.25436367]
[1730766953059,0.14282894,2409.6,2409.5,0.25436367]
[1730766953265,0.78,2409.7,2409.5,0.25436367]
[1730766953558,0.14282894,2409.6,2409.3,0.40695921]
[1730766953767,0.78,2409.7,2409.3,0.40695921]
[1730766954081,0.14282894,2409.5,2409.3,0.40695921]
[1730766954241,0.78,2409.7,2409.4,0.08299555]
[1730766954441,0.78,2409.7,2409.2,0.7759]
[1730766954666,0.14291021,2409.6,2409.3,0.08299566]
[1730766954851,0.14291021,2409.6,2409.2,0.7759]
[1730766955210,0.78,2409.7,2409.2,0.7759]
[1730766955471,0.78,2409.7,2409.4,0.25425715]
[1730766955676,0.14291021,2409.6,2409.3,0.66105596]
[1730766956037,0.78,2409.7,2409.3,0.66105596]
[1730766956451,0.14291021,2409.6,2409.3,0.66105596]
[1730766956654,0.14291021,2409.6,2409.4,0.25425715]
[1730766956857,0.78,2409.7,2409.4,0.25425715]
[1730766957178,0.14291021,2409.6,2409.5,0.25422207]
[1730766957542,0.78,2409.7,2409.5,0.25422207]
[1730766957784,0.14291021,2409.6,2409.3,0.40675354]
[1730766958083,0.14291021,2409.6,2409.4,0.25421061]
[1730766958246,0.78,2409.7,2409.5,0.25421061]
[1730766958454,0.78,2409.7,2409.2,0.7759]
[1730766958653,0.14291021,2409.6,2409.3,0.6609631]
[1730766959000,0.78,2409.7,2409.4,0.25421059]
[1730766959162,0.78,2409.7,2409.3,0.40677663]
[1730766959363,0.14291021,2409.6,2409.4,0.25422276]
[1730766959565,0.78,2409.7,2409.1,0.58041566]
[1730766959792,0.14291021,2409.5,2409.2,1.10202396]
[1730766960104,0.78,2409.7,2409.3,0.66098225]
[1730766960265,0.78,2409.7,2409.4,0.25420562]
[1730766960470,0.78,2409.7,2409.5,0.25420562]
[1730766960695,0.78,2409.7,2409.3,0.40670682]
[1730766960866,0.78,2409.7,2409.4,0.25415124]
[1730766961069,0.78,2409.7,2409.3,0.40670682]
[1730766961302,0.78,2409.7,2409.4,0.25416577]
[1730766961462,0.7618,2410.5,2409.5,0.08300009]
[1730766961813,0.7618,2410.4,2409.6,0.25413157]
[1730766961996,0.7618,2410.4,2409.5,0.08300009]
[1730766962166,0.7618,2410.4,2409.6,0.25411548]
[1730766962369,0.7618,2410.4,2409.7,0.25409108]
[1730766962671,0.7618,2410.4,2409.5,0.40664981]
[1730766962864,0.7618,2410.4,2409.6,0.25410079]
[1730766963103,0.7618,2410.4,2409.5,0.40664981]
[1730766963281,0.7654,2410.3,2409.6,0.25412013]
[1730766963487,0.7654,2410.3,2409.4,0.55]
[1730766963664,0.7654,2410.3,2409.5,0.66069664]
[1730766963868,0.7654,2410.3,2409.6,0.25410811]
[1730766964097,0.7654,2410.3,2409.5,0.40658647]
[1730766964295,0.7654,2410.3,2409.6,0.25412266]
[1730766964469,0.7654,2410.3,2409.7,0.25412266]
[1730766964674,0.7654,2410.3,2409.5,0.40658647]
[1730766965011,0.7654,2410.3,2409.6,0.25413399]
[1730766965169,0.7654,2410.3,2409.7,0.25413399]
[1730766965369,0.7654,2410.3,2409.5,0.40661043]
[1730766965711,0.7654,2410.3,2409.6,0.25415051]
[1730766965877,0.7654,2410.3,2409.7,0.25415051]
[1730766966078,0.7654,2410.3,2409.8,0.33713655]
[1730766966309,0.14323526,2410.2,2409.4,3.55]
[1730766966469,0.14323526,2410.2,2409.6,3.0]
[1730766966676,0.7654,2410.3,2409.7,0.66071295]
[1730766966871,0.7654,2410.3,2409.8,0.25411717]
[1730766967072,0.7654,2410.3,2409.5,0.9745754]
[1730766967271,0.14336526,2410.2,2409.6,0.66081196]
[1730766967503,0.14336526,2410.2,2409.7,0.66081196]
[1730766967670,0.7654,2410.3,2409.8,0.25415246]
[1730766967872,0.7654,2410.3,2409.7,0.4066595]
[1730766968169,0.7654,2410.3,2409.5,1.14816411]
[1730766968170,0.14339776,2410.2,2409.8,0.25411628]
[1730766968416,0.14339776,2410.2,2409.5,0.9745754]
[1730766968591,0.7654,2410.3,2409.7,0.40663918]
[1730766968776,0.7509,2410.2,2409.2,3.50831843]
[1730766969092,0.7509,2410.2,2409.3,4.54606402]
[1730766969093,0.89429776,2410.2,2409.3,4.54606402]
[1730766969281,0.89429776,2410.2,2409.4,0.66090343]
[1730766969484,0.89429776,2410.2,2409.5,0.66090343]
[1730766969693,0.89429776,2410.2,2409.6,0.2541883]
[1730766969868,0.89429776,2410.2,2409.2,0.58045682]
[1730766970070,0.89429776,2410.2,2409.3,0.66104497]
[1730766970287,0.89429776,2410.2,2409.4,0.66104497]
[1730766970479,0.8059,2410.0,2409.5,0.25423989]
[1730766970710,0.8059,2409.8,2409.3,0.40680508]
[1730766970918,0.8059,2409.8,2409.1,0.40700249]
[1730766971074,0.8059,2409.8,2409.2,0.66138062]
[1730766971273,0.8059,2409.8,2409.3,0.25437813]
[1730766971483,4.03525871,2410.0,2408.8,1.74982269]
[1730766971484,0.7922,2409.6,2409.1,0.40704294]
[1730766971670,0.7922,2409.6,2409.2,0.25448923]
[1730766971987,0.7922,2409.4,2408.8,0.17369099]
[1730766972181,0.7922,2409.4,2408.9,1.88250533]
[1730766972382,0.7922,2409.4,2409.0,0.66185688]
[1730766972603,0.7922,2409.4,2409.1,0.66185688]
[1730766972784,4.03525871,2409.7,2408.6,0.50914766]
[1730766972785,0.809,2409.2,2408.6,0.50914766]
[1730766973114,0.809,2409.2,2408.7,0.66262442]
[1730766973321,0.7666,2409.0,2408.6,0.40759294]
[1730766973528,0.7666,2409.0,2408.7,0.25483073]
[1730766973712,0.7666,2408.8,2408.4,0.0598727]
[1730766973878,0.7666,2408.8,2408.5,0.25490368]
[1730766973879,0.8184,2408.7,2408.5,0.25490368]
[1730766974077,0.8184,2408.7,2408.4,0.0598727]
[1730766974320,0.14252009,2408.6,2408.4,0.0598727]
[1730766974519,0.8184,2408.5,2408.4,0.0598727]
[1730766975104,0.96092009,2408.5,2408.4,0.0598727]
[1730766978080,4.9961788,2408.5,2408.4,0.0598727]
[1730766978311,8.49579668,2408.5,2408.4,0.0598727]
[1730766978627,5.49579668,2408.5,2408.4,0.0598727]
[1730766980117,5.49579668,2408.5,2408.4,0.0598727]
[1730766981280,8.49579668,2408.5,2408.4,0.0598727]
[1730766984519,9.04579668,2408.5,2408.4,0.0598727]
[1730766984748,0.55,2408.3,2407.2,0.0598727]
[1730766985021,0.145,2407.7,2407.2,0.0598727]
[1730766985607,0.1395754,2407.6,2407.2,0.0598727]
[1730766988930,0.7603,2407.5,2407.2,0.0598727]
[1730766989139,0.89948458,2407.5,2407.2,0.0598727]
[1730766995652,0.03274651,2407.5,2407.2,0.0598727]
[1730766995809,0.13563664,2407.5,2407.2,0.0598727]
[1730766996211,4.03525871,2407.8,2407.2,0.0598727]
[1730766996417,0.13563664,2407.4,2407.2,0.0598727]
[1730766996622,0.40352587,2407.7,2407.2,0.0598727]
[1730766996854,0.13563664,2407.3,2407.2,0.0598727]
[1730766997053,0.40352587,2407.7,2407.2,0.0598727]
[1730766997540,0.13513181,2407.6,2407.2,0.0598727]
[1730766997744,0.59252345,2407.6,2407.2,0.0598727]
[1730766998526,0.1581,2407.5,2407.2,0.0598727]
[1730766998823,0.13505037,2407.4,2407.2,0.0598727]
[1730766999234,0.1581,2407.3,2407.2,0.0598727]
[1730766999440,0.1581,2407.3,2407.2,0.31399178]
[1730766999656,0.29310964,2407.3,2407.2,0.31399178]
[1730766999859,0.29310964,2407.3,2407.2,0.0598727]
[1730767000229,0.29310964,2407.3,2407.2,0.31427707]
[1730767000470,0.29310964,2407.3,2407.2,0.0598727]
[1730767000631,0.29310964,2407.3,2407.2,0.31427714]
[1730767001936,0.13500964,2407.3,2407.2,0.31427714]
[1730767002149,0.12779552,2407.3,2407.2,1.2316481]
[1730767002344,2.494,2408.3,2407.2,0.72173155]
[1730767002345,0.1581,2407.6,2407.2,0.72173155]
[1730767002550,0.29269811,2407.5,2407.3,0.25440444]
[1730767002869,0.29269811,2407.5,2407.4,0.25440444]
[1730767004245,0.13459811,2407.5,2407.2,0.0598727]
[1730767004449,0.1581,2407.4,2407.3,0.66397433]
[1730767004780,0.29270626,2407.4,2407.3,0.66396565]
[1730767005065,7.32796497,2407.4,2407.3,0.25536539]
[1730767005244,8.13269505,2407.4,2407.3,0.25536539]
[1730767006373,8.68269505,2407.4,2407.3,0.25536539]
[1730767007969,3.7081,2407.3,2407.2,0.0598727]
[1730767008182,3.84214413,2407.3,2407.2,0.0598727]
[1730767008470,4.71035742,2407.3,2407.2,0.0598727]
[1730767010193,0.55,2407.1,2406.3,0.42601804]
[1730767010339,0.1581,2406.3,2406.0,0.48589074]
[1730767010544,0.13372631,2406.2,2406.1,1.17726711]
[1730767010770,0.1581,2406.3,2406.1,1.17726711]
[1730767010949,0.1581,2406.3,2406.2,0.66539653]
[1730767011371,0.57743587,2406.3,2406.2,0.66499919]
[1730767012580,0.71116218,2406.3,2406.2,0.66499919]
[1730767012793,4.26116218,2406.3,2406.2,0.2557629]
[1730767012985,4.26116218,2406.3,2406.0,0.0598727]
[1730767013291,7.03525871,2406.1,2406.0,0.0598727]
[1730767013596,7.16843879,2406.1,2406.0,0.0598727]
[1730767013745,7.32653879,2406.1,2406.0,0.0598727]
[1730767016576,3.0,2406.0,2405.5,0.40841946]
[1730767016778,3.0,2406.0,2405.1,0.51044583]
[1730767016779,4.03525871,2405.7,2405.1,0.51044583]
[1730767017087,4.03525871,2405.7,2405.2,0.25520857]
[1730767017253,0.13287829,2405.6,2405.2,0.6635579]
[1730767017451,4.03525871,2405.7,2405.2,0.40834933]
[1730767017651,4.03525871,2405.7,2405.3,0.25522164]
[1730767017652,0.12844086,2405.5,2405.3,0.25522164]
[1730767017851,4.03525871,2405.7,2405.3,0.25522164]
[1730767018157,0.41933587,2405.6,2405.3,0.25522164]
[1730767018592,0.12844086,2405.5,2405.3,0.25522164]
[1730767018755,0.12844086,2405.5,2405.2,0.40834933]
[1730767019355,3.0,2405.3,2405.2,0.40834933]
[1730767019560,4.19335871,2405.4,2405.2,0.40834933]
[1730767019995,0.12658151,2405.3,2404.8,0.0598727]
[1730767021060,0.12658151,2405.3,2404.9,0.25503502]
[1730767021283,0.12658151,2405.3,2404.8,0.0598727]
[1730767021593,0.12658151,2405.3,2404.9,0.25502802]
[1730767021791,0.12658151,2405.3,2405.0,1.07600872]
[1730767021952,3.57743587,2405.6,2405.0,0.821]
[1730767022153,0.12644277,2405.5,2405.0,0.821]
[1730767023588,0.1581,2405.9,2405.1,0.25477056]
[1730767023762,0.12647542,2405.8,2405.2,0.25477056]
[1730767023958,0.12647542,2405.8,2405.0,0.821]
[1730767024158,0.12647542,2405.8,2405.2,0.7777]
[1730767024354,0.12647542,2405.8,2405.3,0.2549963]
[1730767024602,0.12647542,2405.8,2405.4,0.2549963]
[1730767024903,0.12647542,2405.8,2405.2,0.7777]
[1730767025101,0.12647542,2405.8,2405.3,0.66282139]
[1730767025302,0.12647542,2405.8,2405.2,0.7777]
[1730767025303,0.1581,2406.1,2405.4,0.25493238]
[1730767025513,0.12658967,2405.7,2405.5,0.25498502]
[1730767025811,0.1581,2406.1,2405.6,0.8059]
[1730767027013,0.12698129,2406.0,2405.6,0.8059]
[1730767029200,4.19335871,2406.3,2405.6,0.8059]
[1730767029414,0.12698129,2405.9,2405.6,0.8059]
[1730767029630,0.1581,2406.3,2405.6,0.8059]
[1730767029831,0.1271118,2405.8,2405.6,0.8059]
[1730767029984,0.1581,2406.3,2405.6,0.8059]
[1730767030350,0.1271118,2405.7,2405.6,0.8059]
[1730767030620,0.1581,2406.3,2405.6,0.8059]
[1730767030783,0.12715258,2405.7,2405.6,0.8059]
[1730767030986,0.1581,2406.3,2405.6,0.8059]
[1730767031179,0.12715258,2405.7,2405.6,0.8059]
[1730767031387,0.1581,2406.3,2405.6,0.8059]
[1730767031679,0.12715258,2405.7,2405.6,0.8059]
[1730767031879,0.1581,2406.3,2405.6,0.8059]
[1730767032284,0.12715258,2406.2,2405.6,0.8059]
[1730767034548,0.12715258,2406.2,2405.3,0.40940035]
[1730767034549,0.12715258,2406.2,2405.8,0.7811]
[1730767034759,4.19335871,2406.6,2405.8,0.7811]
[1730767035043,0.12787859,2406.1,2405.8,0.7811]
[1730767035205,4.91269458,2406.6,2405.8,0.7811]
[1730767035410,0.12787859,2406.0,2405.8,0.7811]
[1730767035606,4.91269458,2406.6,2405.8,0.7811]
[1730767035836,0.12787859,2405.9,2405.8,0.7811]
[1730767036057,0.1581,2406.2,2405.5,0.7643]
[1730767036343,0.12796013,2405.9,2405.6,0.25616138]
[1730767036557,0.1581,2406.2,2405.5,0.7643]
[1730767036714,0.12796013,2405.8,2405.5,0.7643]
[1730767037146,0.1581,2406.2,2405.6,0.25633746]
[1730767037352,0.12796013,2405.7,2405.5,0.7643]
[1730767037513,0.57743587,2406.2,2405.6,0.25632885]
[1730767037714,0.57743587,2406.2,2405.5,0.7643]
[1730767037942,0.12796013,2406.1,2405.6,0.25632412]
[1730767038141,0.12796013,2406.1,2405.5,0.7643]
[1730767038317,0.6020256,2406.1,2405.6,0.25648441]
[1730767038511,0.6020256,2406.1,2405.5,0.7643]
[1730767038746,0.6020256,2406.1,2405.6,0.25650347]
[1730767038910,0.6020256,2406.1,2405.7,0.25650347]
[1730767039114,0.6020256,2406.1,2405.5,0.7643]
[1730767039442,0.6020256,2406.1,2405.6,0.25669352]
[1730767039641,0.6020256,2406.1,2405.7,0.25669352]
[1730767039854,0.6020256,2406.1,2405.5,0.7643]
[1730767040150,0.6020256,2406.1,2405.6,0.25670469]
[1730767040383,0.6020256,2406.1,2405.7,0.25670469]
[1730767040649,0.6020256,2406.1,2405.8,0.25670469]
[1730767040856,0.6020256,2406.1,2405.5,0.7643]
[1730767041029,0.6020256,2406.1,2405.6,0.6678181]
[1730767041361,0.6020256,2406.1,2405.7,0.2568471]
[1730767041683,0.6020256,2406.1,2405.5,0.7643]
[1730767041815,0.12796013,2406.1,2405.8,0.25685899]
[1730767042013,0.12796013,2406.1,2405.3,0.7788]
[1730767042211,0.12796013,2406.1,2405.4,0.66793646]
[1730767042444,0.12796013,2406.1,2405.6,0.7931]
[1730767042652,0.12796013,2406.1,2405.7,0.25689262]
[1730767042852,0.12796013,2406.1,2405.8,0.25689262]
[1730767043061,0.12796013,2406.1,2405.6,0.7931]
[1730767043359,0.12796013,2406.1,2405.8,0.7644]
[1730767043560,0.1581,2406.6,2405.9,0.99037713]
[1730767043861,0.1581,2406.6,2406.0,0.25690715]
[1730767044015,0.1581,2406.6,2406.1,0.25690715]
[1730767044223,0.1581,2406.6,2405.8,0.7644]
[1730767044460,0.1581,2406.6,2405.9,0.66745936]
[1730767044758,0.1581,2406.6,2406.0,0.25670912]
[1730767044920,0.1581,2406.6,2406.1,0.25670912]
[1730767045116,0.1581,2406.6,2405.8,0.7644]
[1730767045323,0.1581,2406.6,2405.9,0.66743667]
[1730767045554,4.19335871,2406.6,2406.0,0.2567004]
[1730767045727,4.19335871,2406.6,2405.8,0.7644]
[1730767045936,4.19335871,2406.6,2405.9,0.25668918]
[1730767046120,4.19335871,2406.6,2406.0,0.25668918]
[1730767046316,4.03525871,2406.3,2405.5,0.8049]
[1730767046521,3.1581,2406.2,2405.6,0.25675032]
[1730767046760,3.1581,2406.2,2405.5,0.8049]
[1730767047520,3.1581,2406.2,2405.1,0.7738]
[1730767047749,0.71933587,2406.1,2405.2,0.66772997]
[1730767047929,0.71933587,2406.1,2405.3,0.66772997]
[1730767048259,0.71933587,2406.1,2405.4,0.2568132]
[1730767048465,0.71933587,2406.1,2405.5,0.2568132]
[1730767048661,0.71933587,2406.1,2405.1,0.7738]
[1730767048837,0.38774359,2406.0,2405.1,0.7738]
[1730767049018,0.71933587,2406.1,2405.3,0.7767]
[1730767049228,0.1581,2406.2,2405.4,0.66777825]
[1730767049425,0.1581,2406.2,2405.5,0.25683177]
[1730767049621,0.1581,2406.2,2405.6,0.25683177]
[1730767049926,0.1581,2406.2,2405.3,0.7767]
[1730767050141,0.1581,2406.2,2405.4,0.66800781]
[1730767050337,0.1581,2406.2,2405.5,0.25692006]
[1730767050540,0.1581,2406.2,2405.6,0.25692006]
[1730767050738,0.1581,2406.2,2405.3,0.7767]
[1730767051070,0.1581,2406.2,2405.4,0.66783106]
[1730767051270,0.1581,2406.2,2405.5,0.25685208]
[1730767051425,0.1581,2406.2,2405.6,0.25685208]
[1730767051629,0.1581,2406.2,2405.3,0.7767]
[1730767051841,0.1581,2406.2,2405.4,0.66781892]
[1730767052049,0.1581,2406.2,2405.5,0.25684741]
[1730767052250,0.1581,2406.2,2405.6,0.25684741]
[1730767052583,0.1581,2406.2,2405.3,0.7767]
[1730767052727,0.1581,2406.2,2405.4,0.66805325]
[1730767053056,3.0,2405.9,2405.5,0.25693754]
[1730767053255,0.87743587,2405.8,2405.1,0.41140701]
[1730767053432,0.87743587,2405.8,2405.2,0.25713294]
[1730767053632,0.87743587,2405.8,2405.3,0.25713294]
[1730767053832,0.87743587,2405.8,2405.0,0.8257]
[1730767054173,0.87743587,2405.8,2405.1,0.25713507]
[1730767054377,0.38774359,2405.7,2405.2,0.25713507]
[1730767054577,0.38774359,2405.7,2405.0,0.8257]
[1730767054868,0.38774359,2405.7,2405.1,0.66845874]
[1730767055076,0.38774359,2405.7,2405.2,0.25709349]
[1730767055278,0.38774359,2405.7,2405.0,0.8257]
[1730767055426,0.38774359,2405.7,2405.1,0.25704259]
[1730767055627,0.38774359,2405.7,2405.2,0.25704259]
[1730767055865,0.38774359,2405.7,2405.0,0.8257]
[1730767056025,0.38774359,2405.7,2405.1,0.25703394]
[1730767056230,0.38774359,2405.7,2405.2,0.25703394]
[1730767056459,0.38774359,2405.7,2405.0,0.8257]
[1730767056626,0.1581,2405.6,2405.1,0.25691754]
[1730767056823,0.1581,2405.6,2405.2,0.25691754]
[1730767057029,0.1581,2405.6,2404.8,0.8511727]
[1730767057251,0.1581,2405.6,2404.9,0.66789047]
[1730767057462,0.1581,2405.6,2405.0,0.25687493]
[1730767057639,0.12357071,2405.5,2405.1,0.25687493]
[1730767057823,0.12357071,2405.5,2404.8,1.63981584]
[1730767058027,0.12357071,2405.5,2404.9,1.13185312]
[1730767058271,0.12357071,2405.5,2405.0,0.25686765]